bitfinex-derivatives/quotes_BNBF0:USTF0_20260110
["timestamp","ask_amount","ask_price","bid_price","bid_amount"]
[1768076532434,0.19009641,915.92,914.51,0.67862993]
[1768076532633,0.19009641,915.92,914.48,5.39772483]
[1768076532834,0.19009641,915.92,914.49,0.6785632]
[1768076533035,0.19009641,915.92,914.5,0.6785632]
[1768076533331,0.19009641,915.92,914.51,0.6785632]
[1768076533532,0.19009641,915.92,914.48,5.39772483]
[1768076533730,0.19009641,915.92,914.49,0.67851208]
[1768076533932,0.19009641,915.92,914.5,0.67851208]
[1768076534134,0.19009641,915.92,914.51,0.67851208]
[1768076534332,0.19009641,915.92,914.48,5.39772483]
[1768076534530,0.19009641,915.92,914.49,0.67847585]
[1768076534731,0.19009641,915.92,914.5,0.67847585]
[1768076535031,0.19009641,915.92,914.48,5.39772483]
[1768076535335,0.19009641,915.92,914.49,0.67847597]
[1768076535535,0.19009641,915.92,914.5,0.67847597]
[1768076535730,0.19009641,915.92,914.48,5.39772483]
[1768076535931,0.19009641,915.92,914.49,0.678454]
[1768076536230,0.19009641,915.92,914.5,0.678454]
[1768076536433,0.19009641,915.92,914.48,5.39772483]
[1768076536633,0.19009641,915.92,914.49,0.67853065]
[1768076536832,0.19009641,915.92,914.5,0.67853065]
[1768076537033,0.19009641,915.92,914.48,5.39772483]
[1768076537235,0.19009641,915.92,914.49,0.67853065]
[1768076537433,0.19009641,915.92,914.5,0.67853065]
[1768076537633,0.19009641,915.92,914.48,5.39772483]
[1768076537937,0.19009641,915.92,914.49,0.67850796]
[1768076538138,0.19009641,915.92,914.5,0.67850796]
[1768076538337,0.19009641,915.92,914.48,5.39772483]
[1768076538537,0.19009641,915.92,914.49,0.67849659]
[1768076538738,0.19009641,915.92,914.5,0.67849659]
[1768076538935,0.19009641,915.92,914.48,5.39772483]
[1768076539138,0.19009641,915.92,914.49,0.67849659]
[1768076539335,0.19009641,915.92,914.48,5.39772483]
[1768076539538,0.19009641,915.92,914.49,0.67849646]
[1768076539738,0.19009641,915.92,914.48,5.39772483]
[1768076539936,0.19009641,915.92,914.49,0.67849646]
[1768076540139,0.19009641,915.92,914.48,5.39772483]
[1768076540341,0.19009641,915.92,914.49,0.67852267]
[1768076540637,0.19009641,915.92,914.48,5.39772483]
[1768076540836,0.19009641,915.92,914.49,0.67850761]
[1768076541040,0.19009641,915.92,914.48,5.39772483]
[1768076541343,0.19009641,915.92,914.49,0.67854042]
[1768076541537,0.19009641,915.92,914.48,5.39772483]
[1768076541841,0.19009641,915.92,914.49,0.67853016]
[1768076542042,0.19009641,915.92,914.48,5.39772483]
[1768076542341,0.19009641,915.92,914.49,0.67853016]
[1768076542539,0.19009641,915.92,914.48,5.39772483]
[1768076542739,0.19009641,915.92,914.49,0.67856441]
[1768076542938,0.19009641,915.92,914.48,5.39772483]
[1768076543138,0.19009641,915.92,914.49,0.67856441]
[1768076543341,0.19009641,915.92,914.48,5.39772483]
[1768076543541,0.19009641,915.92,914.49,0.67861053]
[1768076543737,0.19009641,915.92,914.48,5.39772483]
[1768076544043,0.19009641,915.92,914.49,0.67861053]
[1768076544239,0.19009641,915.92,914.5,0.67866793]
[1768076544436,0.19009641,915.92,914.48,5.39772483]
[1768076544641,0.19009641,915.92,914.49,0.67866911]
[1768076544837,0.19009641,915.92,914.5,0.67866911]
[1768076545138,0.19009641,915.92,914.48,5.39772483]
[1768076545440,0.19009641,915.92,914.49,0.6787367]
[1768076545637,0.19009641,915.92,914.5,0.6787367]
[1768076545941,0.19009641,915.92,914.48,5.39772483]
[1768076546140,0.19009641,915.92,914.49,0.67874079]
[1768076546339,0.19009641,915.92,914.5,0.67874079]
[1768076546539,0.19009641,915.92,914.51,0.67874079]
[1768076546739,0.19009641,915.92,914.48,5.39772483]
[1768076546940,0.19009641,915.92,914.49,0.67882631]
[1768076547139,0.19009641,915.92,914.5,0.67882631]
[1768076547339,0.19009641,915.92,914.51,0.67882631]
[1768076547542,0.19009641,915.92,914.48,5.39772483]
[1768076547743,0.19009641,915.92,914.49,0.67892731]
[1768076547943,0.19009641,915.92,914.5,0.67892731]
[1768076548143,0.19009641,915.92,914.51,0.67892731]
[1768076548340,0.19009641,915.92,914.52,0.67892731]
[1768076548542,0.19009641,915.92,914.48,5.39772483]
[1768076548844,0.19009641,915.92,914.49,0.67904511]
[1768076549040,0.19009641,915.92,914.5,0.67904511]
[1768076549239,0.19009641,915.92,914.51,0.67904511]
[1768076549443,0.19009641,915.92,914.52,0.67904511]
[1768076549642,0.19009641,915.92,914.53,0.67904511]
[1768076549840,0.19009641,915.92,914.48,5.39772483]
[1768076550040,0.19009641,915.92,914.49,0.6791819]
[1768076550244,0.19009641,915.92,914.48,5.39772483]
[1768076550245,0.19009641,915.92,914.5,0.6791819]
[1768076550442,0.19009641,915.92,914.51,0.6791819]
[1768076550743,0.19009641,915.92,914.52,0.6791819]
[1768076550942,0.19009641,915.92,914.53,0.6791819]
[1768076551143,0.19009641,915.92,914.54,0.6791819]
[1768076551345,0.19009641,915.92,914.55,0.6791819]
[1768076551545,0.19009641,915.92,914.48,5.39772483]
[1768076551745,0.19009641,915.92,914.49,0.67952469]
[1768076552042,0.19009641,915.92,914.5,0.67952469]
[1768076552244,0.19009641,915.92,914.51,0.67952469]
[1768076552447,0.19009641,915.92,914.52,0.67952469]
[1768076552643,0.19009641,915.92,914.53,0.67952469]
[1768076552946,0.19009641,915.92,914.54,0.67952469]
[1768076553146,0.19009641,915.92,914.55,0.67952469]
[1768076553346,0.19009641,915.92,914.56,0.67952469]
[1768076553644,0.19009641,915.92,914.57,0.67952469]
[1768076553845,0.19009641,915.92,914.48,5.39772483]
[1768076554148,0.19009641,915.92,914.49,0.67985813]
[1768076554348,0.19009641,915.92,914.5,0.67985813]
[1768076554547,0.19009641,915.92,914.51,0.67985813]
[1768076554750,0.19009641,915.92,914.52,0.67985813]
[1768076555045,0.19009641,915.92,914.53,0.67985813]
[1768076555246,0.19009641,915.92,914.48,5.39772483]
[1768076556147,0.19009641,915.92,914.49,0.68011164]
[1768076556350,0.19009641,915.92,914.48,5.39772483]
[1768076557151,0.19009641,915.92,914.49,0.68017277]
[1768076557350,0.19009641,915.92,914.48,5.39772483]
[1768076557650,0.19009641,915.92,914.49,0.68014001]
[1768076557848,0.19009641,915.92,914.48,5.39772483]
[1768076558147,0.19009641,915.92,914.49,0.68014001]
[1768076558452,0.19009641,915.92,914.48,5.39772483]
[1768076559152,0.19009641,915.92,914.49,0.68035997]
[1768076559447,0.19009641,915.92,914.48,5.39772483]
[1768076574068,0.19009641,915.92,914.49,2.654]
[1768076587075,0.19009641,915.92,914.48,5.39772483]
[1768076590680,0.19009641,915.92,914.49,1.936]
[1768076599290,2.72679797,915.87,914.49,1.936]
[1768076600291,2.72679797,915.86,914.49,1.936]
[1768076601291,2.72679797,915.85,914.49,1.936]
[1768076603491,2.72679797,915.84,914.49,1.936]
[1768076604495,2.72679797,915.83,914.49,1.936]
[1768076607592,2.72679797,915.82,914.49,1.936]
[1768076609791,2.72679797,915.88,914.49,1.936]
[1768076611693,2.72679797,915.86,914.49,1.936]
[1768076612797,2.72679797,915.87,914.49,1.936]
[1768076613294,2.72679797,915.86,914.49,1.936]
[1768076613894,2.72679797,915.87,914.49,1.936]
[1768076622003,0.19017692,915.53,914.49,1.936]
[1768076622202,3.76614976,915.53,914.49,1.936]
[1768076623208,3.76614976,915.53,914.49,0.5665955]
[1768076640820,3.76614976,915.53,913.87,0.19020811]
[1768076641020,3.76614976,915.53,913.88,0.68111377]
[1768076641218,3.76614976,915.53,913.89,0.68111377]
[1768076641419,3.76614976,915.53,913.9,0.68111377]
[1768076641619,3.76614976,915.53,913.91,0.68111377]
[1768076641921,3.76614976,915.53,913.92,0.68111377]
[1768076642120,3.76614976,915.53,913.93,0.68111377]
[1768076642324,3.76614976,915.53,913.94,0.68111377]
[1768076642524,3.76614976,915.53,913.87,0.19020811]
[1768076642525,3.76614976,915.53,913.95,0.68111377]
[1768076642721,3.76614976,915.53,913.96,0.68111377]
[1768076643025,3.76614976,915.53,913.97,0.68111377]
[1768076643322,3.76614976,915.53,913.98,0.68111377]
[1768076643525,3.76614976,915.53,913.99,0.68111377]
[1768076643822,3.76614976,915.53,914.0,0.68111377]
[1768076644122,3.76614976,915.53,914.01,0.68111377]
[1768076644321,3.76614976,915.53,914.02,0.68111377]
[1768076644620,3.76614976,915.53,914.03,0.68111377]
[1768076644822,3.76614976,915.53,914.04,0.68111377]
[1768076645022,3.76614976,915.53,914.05,0.68111377]
[1768076645220,3.76614976,915.53,914.06,0.68111377]
[1768076645425,3.76614976,915.53,914.07,0.68111377]
[1768076645722,3.76614976,915.53,914.08,0.68111377]
[1768076645924,3.76614976,915.53,914.09,0.68111377]
[1768076646225,3.76614976,915.53,914.1,0.68111377]
[1768076646424,3.76614976,915.53,914.11,0.68111377]
[1768076646620,3.76614976,915.53,914.12,0.68111377]
[1768076646822,3.76614976,915.53,913.93,1.921]
[1768076647022,3.76614976,915.53,913.94,0.68103191]
[1768076647224,3.76614976,915.53,913.95,0.68103191]
[1768076647421,3.76614976,915.53,913.96,0.68103191]
[1768076647625,3.76614976,915.53,913.97,0.68103191]
[1768076647822,3.76614976,915.53,913.98,0.68103191]
[1768076648026,3.76614976,915.53,913.99,0.68103191]
[1768076648222,3.76614976,915.53,914.0,0.68103191]
[1768076648523,3.76614976,915.53,914.01,0.68103191]
[1768076648723,3.76614976,915.53,914.02,0.68103191]
[1768076648926,3.76614976,915.53,914.03,0.68103191]
[1768076649127,3.76614976,915.53,914.04,0.68103191]
[1768076649328,3.76614976,915.53,914.05,0.68103191]
[1768076649523,3.76614976,915.53,914.06,0.68103191]
[1768076649827,3.76614976,915.53,914.07,0.68103191]
[1768076650027,3.76614976,915.53,914.08,0.68103191]
[1768076650329,3.76614976,915.53,914.09,0.68103191]
[1768076650524,3.76614976,915.53,914.1,0.68103191]
[1768076650825,3.76614976,915.53,913.93,1.921]
[1768076651026,3.76614976,915.53,913.94,0.68107717]
[1768076651225,3.76614976,915.53,913.95,0.68107717]
[1768076651426,3.76614976,915.53,913.96,0.68107717]
[1768076651624,3.76614976,915.53,913.97,0.68107717]
[1768076651824,3.76614976,915.53,913.98,0.68107717]
[1768076652127,3.76614976,915.53,913.99,0.68107717]
[1768076652323,3.76614976,915.53,914.0,0.68107717]
[1768076652528,3.76614976,915.53,914.01,0.68107717]
[1768076652724,3.76614976,915.53,914.02,0.68107717]
[1768076652929,3.76614976,915.53,914.03,0.68107717]
[1768076653127,3.76614976,915.53,914.04,0.68107717]
[1768076653323,3.76614976,915.53,914.05,0.68107717]
[1768076653530,3.76614976,915.53,914.06,0.68107717]
[1768076653729,3.76614976,915.53,914.07,0.68107717]
[1768076654026,3.76614976,915.53,914.08,0.68107717]
[1768076654329,3.76614976,915.53,914.09,0.68107717]
[1768076654525,3.76614976,915.53,914.1,0.68107717]
[1768076654728,3.76614976,915.53,914.11,0.68107717]
[1768076654927,3.76614976,915.53,913.93,1.921]
[1768076655126,3.76614976,915.53,913.94,0.68120831]
[1768076655326,3.76614976,915.53,913.95,0.68120831]
[1768076655525,3.76614976,915.53,913.96,0.68120831]
[1768076655728,3.76614976,915.53,913.97,0.68120831]
[1768076655928,3.76614976,915.53,913.98,0.68120831]
[1768076656124,3.76614976,915.53,913.93,1.921]
[1768076656125,3.76614976,915.53,913.99,0.68120831]
[1768076656330,3.76614976,915.53,914.0,0.68120831]
[1768076656530,3.76614976,915.53,913.93,1.921]
[1768076656531,3.76614976,915.53,914.01,0.68120831]
[1768076656729,3.76614976,915.53,914.02,0.68120831]
[1768076656930,3.76614976,915.53,914.03,0.68120831]
[1768076657129,3.76614976,915.53,914.04,0.68120831]
[1768076657330,3.76614976,915.53,914.05,0.68120831]
[1768076657632,3.76614976,915.53,914.06,0.68120831]
[1768076657831,3.76614976,915.53,914.07,0.68120831]
[1768076658130,3.76614976,915.53,914.08,0.68120831]
[1768076658430,3.76614976,915.53,914.09,0.68120831]
[1768076658633,3.76614976,915.53,914.1,0.68120831]
[1768076658831,3.76614976,915.53,914.11,0.68120831]
[1768076659032,3.76614976,915.53,914.12,0.68120831]
[1768076659231,3.76614976,915.53,913.93,1.921]
[1768076659532,3.76614976,915.53,913.94,0.68237505]
[1768076659731,3.76614976,915.53,913.95,0.68237505]
[1768076659930,3.76614976,915.53,913.96,0.68237505]
[1768076660134,3.76614976,915.53,913.97,0.68237505]
[1768076660333,3.76614976,915.53,913.98,0.68237505]
[1768076660536,3.76614976,915.53,913.99,0.68237505]
[1768076660832,3.76614976,915.53,914.0,0.68237505]
[1768076661034,3.76614976,915.53,914.01,0.68237505]
[1768076661236,3.76614976,915.53,913.93,1.921]
[1768076661237,3.76614976,915.53,914.02,0.68237505]
[1768076661533,3.76614976,915.53,914.03,0.68237505]
[1768076661736,3.76614976,915.53,914.04,0.68237505]
[1768076661933,3.76614976,915.53,914.05,0.68237505]
[1768076662236,3.76614976,915.53,914.06,0.68237505]
[1768076662440,3.76614976,915.53,914.07,0.68237505]
[1768076662637,3.76614976,915.53,914.08,0.68237505]
[1768076662936,3.76614976,915.53,914.09,0.68237505]
[1768076663137,3.76614976,915.53,914.1,0.68237505]
[1768076663338,3.76614976,915.53,914.11,0.68237505]
[1768076663533,3.76614976,915.53,914.12,0.68237505]
[1768076663734,3.76614976,915.53,914.13,0.68237505]
[1768076664039,3.76614976,915.53,914.14,0.68237505]
[1768076664240,3.76614976,915.53,914.15,0.68237505]
[1768076664437,3.76614976,915.53,914.16,0.68237505]
[1768076664635,3.76614976,915.53,914.17,0.68237505]
[1768076664836,3.76614976,915.53,914.18,0.68237505]
[1768076665039,3.76614976,915.53,914.19,0.68237505]
[1768076665237,3.76614976,915.53,914.2,0.68237505]
[1768076665440,3.76614976,915.53,914.21,0.68237505]
[1768076665640,3.76614976,915.53,914.22,0.68237505]
[1768076665837,3.76614976,915.53,914.18,5.14620973]
[1768076666041,3.76614976,915.53,914.19,0.68301431]
[1768076666242,3.76614976,915.53,914.2,0.68301431]
[1768076666443,3.76614976,915.53,914.21,0.68301431]
[1768076666644,3.76614976,915.53,914.18,5.14620973]
[1768076666843,3.76614976,915.53,914.19,0.68324538]
[1768076667043,3.76614976,915.53,914.2,0.68324538]
[1768076667243,3.76614976,915.53,914.21,0.68359187]
[1768076667443,3.76614976,915.53,914.22,0.68359187]
[1768076667640,3.76614976,915.53,914.18,5.14620973]
[1768076667844,3.76614976,915.53,914.19,0.68359187]
[1768076668044,3.76614976,915.53,914.2,0.68359187]
[1768076668245,3.76614976,915.53,914.21,0.68359187]
[1768076668446,3.76614976,915.53,914.22,0.68359187]
[1768076668646,3.76614976,915.53,914.18,5.14620973]
[1768076668846,3.76614976,915.53,914.19,0.68356133]
[1768076669046,3.76614976,915.53,914.2,0.68356133]
[1768076669246,3.76614976,915.53,914.21,0.68356133]
[1768076669546,3.76614976,915.53,914.22,0.68356133]
[1768076669743,3.76614976,915.53,914.18,5.14620973]
[1768076670040,3.76614976,915.53,914.19,0.68353676]
[1768076670242,3.76614976,915.53,914.2,0.68353676]
[1768076670448,3.76614976,915.53,914.21,0.68353676]
[1768076670643,3.76614976,915.53,914.22,0.68353676]
[1768076670845,3.76614976,915.53,914.18,5.14620973]
[1768076671042,3.76614976,915.53,914.19,0.68351676]
[1768076671246,3.76614976,915.53,914.2,0.68351676]
[1768076671447,3.76614976,915.53,914.21,0.68351676]
[1768076671647,3.76614976,915.53,914.22,0.68351676]
[1768076671844,3.76614976,915.53,914.18,5.14620973]
[1768076672048,3.76614976,915.53,914.19,0.68350051]
[1768076672248,3.76614976,915.53,914.2,0.68350051]
[1768076672547,3.76614976,915.53,914.21,0.68350051]
[1768076672748,3.76614976,915.53,914.22,0.68350051]
[1768076673048,3.76614976,915.53,914.18,5.14620973]
[1768076673246,3.76614976,915.53,914.19,0.68348755]
[1768076673450,3.76614976,915.53,914.2,0.68348755]
[1768076673644,3.76614976,915.53,914.18,5.14620973]
[1768076673645,3.76614976,915.53,914.21,0.68348755]
[1768076673847,3.76614976,915.53,914.18,5.14620973]
[1768076674044,3.76614976,915.53,914.19,0.68347749]
[1768076674249,3.76614976,915.53,914.2,0.68347749]
[1768076674451,3.76614976,915.53,914.21,0.68347749]
[1768076674646,3.76614976,915.53,914.18,5.14620973]
[1768076674850,3.76614976,915.53,914.19,0.6834652]
[1768076675051,3.76614976,915.53,914.2,0.6834652]
[1768076675347,3.76614976,915.53,914.21,0.6834652]
[1768076675548,3.76614976,915.53,914.2,2.624]
[1768076675851,3.76614976,915.53,914.21,0.68345508]
[1768076676052,3.76614976,915.53,914.2,2.624]
[1768076676352,3.76614976,915.53,914.21,0.68345508]
[1768076676647,3.76614976,915.53,914.2,2.624]
[1768076676851,3.76614976,915.53,914.21,0.68344695]
[1768076677147,3.76614976,915.53,914.2,2.624]
[1768076677346,3.76614976,915.53,914.21,0.68343862]
[1768076677551,3.76614976,915.53,914.2,2.624]
[1768076677851,3.76614976,915.53,914.21,0.68344067]
[1768076678150,3.76614976,915.53,914.2,2.624]
[1768076678350,3.76614976,915.53,914.21,0.68343617]
[1768076678547,3.76614976,915.53,914.2,2.624]
[1768076678748,3.76614976,915.53,914.21,0.68343617]
[1768076679050,3.76614976,915.53,914.2,2.624]
[1768076698263,3.76614976,915.53,914.18,5.14620973]
[1768076702266,3.76614976,915.53,914.19,2.013]
[1768076739803,2.72679797,915.52,914.19,2.013]
[1768076745211,0.19017692,915.53,914.19,2.013]
[1768076745212,2.72679797,915.48,914.19,2.013]
[1768076745608,2.72679797,915.49,914.19,2.013]
[1768076747109,2.72679797,915.5,914.19,2.013]
[1768076749716,0.19017692,915.53,914.19,2.013]
[1768076761333,0.19017692,915.53,914.18,5.14620973]
[1768076764136,0.19017692,915.53,914.19,1.979]
[1768076771837,0.19017692,915.53,914.2,0.68435366]
[1768076772036,0.19017692,915.53,914.19,1.979]
[1768076772037,0.19017692,915.53,914.21,0.68435366]
[1768076772336,0.19017692,915.53,914.19,1.979]
[1768076772541,0.19017692,915.53,914.2,0.68419626]
[1768076772742,0.19017692,915.53,914.19,1.979]
[1768076772941,0.19017692,915.53,914.2,0.68419626]
[1768076773136,0.19017692,915.53,914.19,1.979]
[1768076773342,0.19017692,915.53,914.2,0.68419989]
[1768076773638,0.19017692,915.53,914.19,1.979]
[1768076773837,0.19017692,915.53,914.2,0.6840736]
[1768076774138,0.19017692,915.53,914.19,1.979]
[1768076810364,0.19017692,915.53,914.2,0.68470639]
[1768076810664,0.19017692,915.53,914.19,1.979]
[1768076810963,0.19017692,915.53,914.2,0.68470639]
[1768076811161,0.19017692,915.53,914.19,1.979]
[1768076811368,0.19017692,915.53,914.2,0.68470639]
[1768076811559,0.19017692,915.53,914.19,1.979]
[1768076811864,0.19017692,915.53,914.2,0.68480258]
[1768076812065,0.19017692,915.53,914.19,1.979]
[1768076812265,0.19017692,915.53,914.2,0.68480258]
[1768076812565,0.19017692,915.53,914.21,0.68480258]
[1768076812761,0.19017692,915.53,914.19,1.979]
[1768076813065,0.19017692,915.53,914.2,0.68491403]
[1768076813261,0.19017692,915.53,914.21,0.68491403]
[1768076813462,0.19017692,915.53,914.19,1.979]
[1768076813661,0.19017692,915.53,914.2,0.68504595]
[1768076813865,0.19017692,915.53,914.21,0.68504595]
[1768076814066,0.19017692,915.53,914.19,1.979]
[1768076814262,0.19017692,915.53,914.2,0.68504595]
[1768076814560,0.19017692,915.53,914.21,0.68504595]
[1768076814762,0.19017692,915.53,914.22,0.68504595]
[1768076814965,0.19017692,915.53,914.19,1.979]
[1768076815165,0.19017692,915.53,914.2,0.68520843]
[1768076815365,0.19017692,915.53,914.21,0.68520843]
[1768076815568,0.19017692,915.53,914.22,0.68520843]
[1768076815863,0.19017692,915.53,914.23,0.68520843]
[1768076816162,0.19017692,915.53,914.24,0.68520843]
[1768076816362,0.19017692,915.53,914.25,0.68585947]
[1768076816567,0.19017692,915.53,914.26,0.68585947]
[1768076816764,0.19017692,915.53,914.2,8.48674727]
[1768076816964,0.19017692,915.53,914.21,0.68585947]
[1768076817165,0.19017692,915.53,914.22,0.68585947]
[1768076817370,0.19017692,915.53,914.23,0.68585947]
[1768076817568,0.19017692,915.53,914.24,0.68585947]
[1768076817866,0.19017692,915.53,914.25,0.68585947]
[1768076818066,0.19017692,915.53,914.26,0.68585947]
[1768076818268,0.19017692,915.53,914.2,8.48674727]
[1768076818567,0.19017692,915.53,914.21,0.68585957]
[1768076818765,0.19017692,915.53,914.22,0.68585957]
[1768076818964,0.19017692,915.53,914.23,0.68585957]
[1768076819165,0.19017692,915.53,914.24,0.68585957]
[1768076819466,0.19017692,915.53,914.25,0.68585957]
[1768076819667,0.19017692,915.53,914.26,0.68585957]
[1768076819867,0.19017692,915.53,914.2,8.48674727]
[1768076820065,0.19017692,915.53,914.21,0.6858596]
[1768076820268,0.19017692,915.53,914.22,0.6858596]
[1768076820470,0.19017692,915.53,914.23,0.6858596]
[1768076820768,0.19017692,915.53,914.24,0.6858596]
[1768076820967,0.19017692,915.53,914.25,0.6858596]
[1768076821268,0.19017692,915.53,914.2,8.48674727]
[1768076821468,0.19017692,915.53,914.21,0.6858637]
[1768076821667,0.19017692,915.53,914.22,0.6858637]
[1768076821868,0.19017692,915.53,914.23,0.6858637]
[1768076822167,2.72679797,915.71,914.24,0.6858637]
[1768076822466,5.7548531,915.25,914.2,8.48674727]
[1768076822667,5.7548531,915.25,914.21,0.68586446]
[1768076822868,5.7548531,915.25,914.22,0.68586446]
[1768076823071,5.7548531,915.25,914.23,0.68586446]
[1768076823268,5.7548531,915.25,914.24,0.68586446]
[1768076823472,5.7548531,915.25,914.2,8.48674727]
[1768076844991,5.7548531,915.25,914.21,2.175]
[1768076895128,5.7548531,915.25,914.2,8.48674727]
[1768076897932,5.7548531,915.25,914.21,2.836]
[1768076910940,5.7548531,915.25,914.2,8.48674727]
[1768076914048,5.7548531,915.25,914.21,2.682]
[1768076929359,5.7548531,915.25,914.21,1.31216747]
[1768076942469,0.19022006,915.35,914.21,1.31216747]
[1768076952084,0.19022006,915.35,913.62,0.8188079]
[1768076952383,0.19022006,915.35,913.63,0.68538613]
[1768076952584,0.19022006,915.35,913.64,0.68538613]
[1768076952785,0.19022006,915.35,913.65,0.68538613]
[1768076952981,0.19022006,915.35,913.66,0.68538613]
[1768076953284,0.19022006,915.35,913.67,0.68538613]
[1768076953482,0.19022006,915.35,913.68,0.68538613]
[1768076953779,0.19022006,915.35,913.69,0.68538613]
[1768076953984,0.19022006,915.35,913.7,0.68538613]
[1768076954184,0.19022006,915.35,913.71,0.68538613]
[1768076954380,0.19022006,915.35,913.72,0.68538613]
[1768076954584,0.19022006,915.35,913.73,0.68538613]
[1768076954784,0.19022006,915.35,913.74,0.68538613]
[1768076954981,0.19022006,915.35,913.75,0.68538613]
[1768076955184,0.19022006,915.35,913.76,0.68538613]
[1768076955486,0.19022006,915.35,913.77,0.68538613]
[1768076955685,0.19022006,915.35,913.78,0.68538613]
[1768076955986,0.19022006,915.35,913.79,0.68538613]
[1768076956186,0.19022006,915.35,913.8,0.68538613]
[1768076956386,0.19022006,915.35,913.81,0.68538613]
[1768076956586,0.19022006,915.35,913.82,0.68538613]
[1768076956886,0.19022006,915.35,913.83,0.68538613]
[1768076957086,0.19022006,915.35,913.84,0.68538613]
[1768076957286,0.19022006,915.35,913.85,0.68538613]
[1768076957482,0.19022006,915.35,913.86,0.68538613]
[1768076957681,0.19022006,915.35,913.77,2.456]
[1768076957682,0.19022006,915.35,913.87,0.68538613]
[1768076957881,0.19022006,915.35,913.88,0.68538613]
[1768076958180,0.19022006,915.35,913.89,0.68538613]
[1768076958381,0.19022006,915.35,913.9,0.68538613]
[1768076958585,0.19022006,915.35,913.91,0.68538613]
[1768076958784,0.19022006,915.35,913.77,2.456]
[1768076958984,0.19022006,915.35,913.78,0.68553588]
[1768076959184,0.19022006,915.35,913.79,0.68553588]
[1768076959386,0.19022006,915.35,913.8,0.68553588]
[1768076959588,0.19022006,915.35,913.81,0.68553588]
[1768076959786,0.19022006,915.35,913.82,0.68553588]
[1768076959990,0.19022006,915.35,913.83,0.68553588]
[1768076960188,0.19022006,915.35,913.84,0.68553588]
[1768076960386,0.19022006,915.35,913.85,0.68553588]
[1768076960590,0.19022006,915.35,913.86,0.68553588]
[1768076960790,0.19022006,915.35,913.87,0.68553588]
[1768076960991,0.19022006,915.35,913.88,0.68553588]
[1768076961192,0.19022006,915.35,913.89,0.68553588]
[1768076961388,0.19022006,915.35,913.9,0.68553588]
[1768076961691,0.19022006,915.35,913.91,0.68553588]
[1768076961893,0.19022006,915.35,913.92,0.68553588]
[1768076962092,0.19022006,915.35,913.93,0.68553588]
[1768076962394,0.19022006,915.35,913.94,0.68553588]
[1768076962588,0.19022006,915.35,913.77,2.456]
[1768076962790,0.19022006,915.35,913.78,0.68553772]
[1768076962993,0.19022006,915.35,913.79,0.68553772]
[1768076963193,0.19022006,915.35,913.8,0.68553772]
[1768076963395,0.19022006,915.35,913.81,0.68553772]
[1768076963591,0.19022006,915.35,913.82,0.68553772]
[1768076963794,0.19022006,915.35,913.83,0.68553772]
[1768076963993,0.19022006,915.35,913.84,0.68553772]
[1768076964297,0.19022006,915.35,913.85,0.68553772]
[1768076964494,0.19022006,915.35,913.86,0.68553772]
[1768076964791,0.19022006,915.35,913.87,0.68553772]
[1768076964996,0.19022006,915.35,913.88,0.68553772]
[1768076965294,0.19022006,915.35,913.89,0.68553772]
[1768076965492,0.19022006,915.35,913.9,0.68553772]
[1768076965796,0.19022006,915.35,913.91,0.68553772]
[1768076965996,0.19022006,915.35,913.92,0.68553772]
[1768076966192,0.19022006,915.35,913.93,0.68553772]
[1768076966393,0.19022006,915.35,913.94,0.68553772]
[1768076966593,0.19022006,915.35,913.77,2.456]
[1768076966796,0.19022006,915.35,913.78,0.68555811]
[1768076967095,0.19022006,915.35,913.79,0.68555811]
[1768076967299,0.19022006,915.35,913.8,0.68555811]
[1768076967495,0.19022006,915.35,913.81,0.68555811]
[1768076967695,0.19022006,915.35,913.82,0.68555811]
[1768076967899,0.19022006,915.35,913.83,0.68555811]
[1768076968096,0.19022006,915.35,913.84,0.68555811]
[1768076968298,0.19022006,915.35,913.85,0.68555811]
[1768076968495,0.19022006,915.35,913.86,0.68555811]
[1768076968696,0.19022006,915.35,913.87,0.68555811]
[1768076968897,0.19022006,915.35,913.88,0.68555811]
[1768076969098,0.19022006,915.35,913.89,0.68555811]
[1768076969299,0.19022006,915.35,913.9,0.68555811]
[1768076969497,0.19022006,915.35,913.77,2.456]
[1768076969702,0.19022006,915.35,913.78,0.68558068]
[1768076969901,2.72679797,915.34,913.79,0.68558068]
[1768076970099,2.72679797,915.34,913.8,0.68558068]
[1768076970302,2.72679797,915.34,913.81,0.68558068]
[1768076970498,2.72679797,915.34,913.82,0.68558068]
[1768076970704,2.72679797,915.34,913.83,0.68558068]
[1768076970901,2.72679797,915.34,913.84,0.68558068]
[1768076971102,2.72679797,915.34,913.85,0.68558068]
[1768076971401,2.72679797,915.34,913.86,0.68558068]
[1768076971605,2.72679797,915.34,913.87,0.68558068]
[1768076971903,2.72679797,915.34,913.77,2.456]
[1768076972102,2.72679797,915.33,913.78,0.68559703]
[1768076972300,2.72679797,915.33,913.79,0.68559703]
[1768076972502,2.72679797,915.33,913.8,0.68559703]
[1768076972704,2.72679797,915.33,913.81,0.68559703]
[1768076973006,2.72679797,915.33,913.82,0.68559703]
[1768076973206,2.72679797,915.33,913.83,0.68559703]
[1768076973406,2.72679797,915.33,913.84,0.68559703]